fUSD/lending_fUSD_20240428
["ID","MTS","AMOUNT","RATE_DAILY","PERIOD"]
[7144,1714327880649,-500.0,0.00011506,2]
[7145,1714327880659,-500.0,0.00011506,2]
[7146,1714327880668,-1953.6,0.00011506,2]
[7147,1714327880677,-589.08,0.00011506,2]
[7149,1714327880695,-532.45,0.00011506,2]
[7150,1714327880704,-21057.08,0.00011506,2]
[7151,1714327880714,-879.3,0.00011506,2]
[7153,1714327880734,-1235.53,0.00011506,2]
[7154,1714327880744,-555.29,0.00011506,2]
[7155,1714327880754,-2376.77,0.00011506,2]
[7156,1714327880763,-500.0,0.00011506,2]
[7157,1714327880773,-500.0,0.00011506,2]
[7159,1714327880792,-500.0,0.00011506,2]
[7160,1714327880802,-2235.31,0.00011506,2]
[7161,1714327880811,-1122.4,0.00011506,2]
[7163,1714327880830,-2439.23,0.00011506,2]
[7164,1714327880839,-500.0,0.00011506,2]
[7165,1714327880849,-500.0,0.00011506,2]
[7167,1714327880868,-500.0,0.00011506,2]
[7169,1714327880887,-3429.51,0.00011506,2]
[7171,1714327880906,-500.0,0.00011506,2]
[7172,1714327880915,-839.55,0.00011506,2]
[7173,1714327880925,-500.0,0.00011506,2]
[7175,1714327880944,-1586.24,0.00011506,2]
[7177,1714327880962,-10234.54,0.00011506,2]
[7178,1714327880971,-1870.8,0.00011506,2]
[7179,1714327880981,-500.0,0.00011506,2]
[7181,1714327881000,-955.6,0.00011506,2]
[7183,1714327881021,-1545.21,0.00011506,2]
[7184,1714327881031,-992.06,0.00011506,2]
[7185,1714327881041,-500.0,0.00011506,2]
[7186,1714327881051,-1142.19,0.00011506,2]
[7187,1714327881061,-2631.26,0.00011506,2]
[7188,1714327881070,-1877.43,0.00011506,2]
[7189,1714327881080,-3093.06,0.00011506,2]
[7191,1714327881099,-500.0,0.00011506,2]
[7192,1714327881109,-2265.09,0.00011506,2]
[7193,1714327881119,-514.74,0.00011506,2]
[7194,1714327881129,-839.39,0.00011506,2]
[7195,1714327881139,-7994.55,0.00011506,2]
[7196,1714327881148,-507.54010638,0.00011506,2]
[7197,1714327881157,-4270.94,0.00011506,2]
[7198,1714327881166,-500.0,0.00011506,2]
[7199,1714327881176,-500.0,0.00011506,2]
[7200,1714327881185,-823.21,0.00011506,2]
[7201,1714327881195,-5489.49,0.00011506,2]
[7202,1714327881204,-502.65488263,0.00011506,2]
[7203,1714327881215,-1263.54,0.00011506,2]
[7204,1714327881224,-1582.16,0.00011506,2]
[7205,1714327881234,-500.0,0.00011506,2]
[7206,1714327881243,-3085.94,0.00011506,2]
[7207,1714327881252,-460.13347288,0.00011506,2]
[7208,1714327881261,-500.0,0.00011506,2]
[7209,1714327881271,-2399.9,0.00011506,2]
[7210,1714327881280,-500.0,0.00011506,2]
[7211,1714327881289,-500.0,0.00011506,2]
[7212,1714327881298,-1594.33,0.00011506,2]
[7213,1714327881308,-500.0,0.00011506,2]
[7215,1714327881326,-501.33111799,0.00011506,2]
[7217,1714327881349,-596.29,0.00011506,2]
[7219,1714327881369,-1065.2,0.00011506,2]
[7221,1714327881388,-503.42029911,0.00011506,2]
[7223,1714327881408,-6721.92,0.00011506,2]
[7225,1714327881432,-14603.79,0.00011506,2]
[7227,1714327881451,-500.0,0.00011506,2]
[7229,1714327881471,-1554.38,0.00011506,2]
[7231,1714327881489,-4628.19,0.00011506,2]
[7233,1714327881508,-2391.0,0.00011506,2]
[7235,1714327881527,-500.0,0.00011506,2]
[7236,1714327881536,-500.0,0.00011506,2]
[7237,1714327881546,-943.28,0.00011506,2]
[7238,1714327881556,-2685.78,0.00011506,2]
[7239,1714327881565,-512.69717401,0.00011506,2]
[7240,1714327881573,-6676.64,0.00011506,2]
[7241,1714327881583,-500.0,0.00011506,2]
[7243,1714327881600,-500.0,0.00011506,2]
[7245,1714327881619,-990.93,0.00011506,2]
[7247,1714327881638,-500.0,0.00011506,2]
[7249,1714327881657,-1118.21,0.00011506,2]
[7250,1714327881668,-1916.73,0.00011506,2]
[7251,1714327881677,-1935.27,0.00011506,2]
[7252,1714327881687,-3376.14,0.00011506,2]
[7253,1714327881696,-8977.28,0.00011506,2]
[7254,1714327881705,-502.86443689,0.00011506,2]
[7255,1714327881714,-7588.89,0.00011506,2]
[7256,1714327881724,-500.0,0.00011506,2]
[7257,1714327881733,-688.63,0.00011506,2]
[7258,1714327881742,-1439.11,0.00011506,2]
[7259,1714327881752,-261.91891953,0.00011506,2]
[7260,1714327881761,-500.0,0.00011506,2]
[7261,1714327881770,-2869.47,0.00011506,2]
[7263,1714327881790,-4369.22,0.00011506,2]
[7265,1714327881808,-727.82,0.00011506,2]
[7267,1714327881828,-531.19,0.00011506,2]
[7268,1714327881838,-4765.67,0.00011506,2]
[7269,1714327881847,-839.45,0.00011506,2]
[7270,1714327881857,-3999.41,0.00011506,2]
[7271,1714327881866,-43270.69,0.00011506,2]
[7272,1714327881875,-500.47,0.00011506,2]
[7273,1714327881884,-500.0,0.00011506,2]
[7275,1714327881903,-4906.24,0.00011506,2]
[7277,1714327881923,-500.0,0.00011506,2]
[7278,1714327881933,-525.49,0.00011506,2]
[7279,1714327881942,-7136.72,0.00011506,2]
[7280,1714327881951,-500.0,0.00011506,2]
[7281,1714327881961,-6529.31,0.00011506,2]
[7282,1714327881970,-500.0,0.00011506,2]
[7283,1714327881979,-500.0,0.00011506,2]
[7284,1714327881988,-500.0,0.00011506,2]
[7285,1714327881998,-233.91,0.00011506,2]
[7286,1714327882007,-2308.51,0.00011506,2]
[7287,1714327882016,-1102.33,0.00011506,2]
[7288,1714327882026,-2065.13,0.00011506,2]
[7289,1714327882035,-527.76,0.00011506,2]
[7290,1714327882046,-10142.44,0.00011506,2]
[7291,1714327882055,-1398.74,0.00011506,2]
[7292,1714327882064,-391.27,0.00011506,2]
[7293,1714327882074,-500.0,0.00011506,2]
[7294,1714327882084,-500.0,0.00011506,2]
[7295,1714327882093,-2500.48,0.00011506,2]
[7296,1714327882103,-500.0,0.00011506,2]
[7297,1714327882112,-1022.43,0.00011506,2]
[7299,1714327882132,-1124.4,0.00011506,2]
[7301,1714327882151,-3084.4,0.00011506,2]
[7303,1714327882169,-500.0,0.00011506,2]
[7305,1714327882188,-433.97474966,0.00011641,2]
[7306,1714327882197,-12054.64145863,0.000117,2]
[7307,1714327882207,-407.36087,0.0001171,2]
[7308,1714327882216,-500.0,0.0001178,2]
[7309,1714327882225,-411.90112539,0.0001178,2]
[7311,1714327882412,-500.0,0.0001178,2]
[7313,1714327882434,-500.0,0.0001178,2]
[7314,1714327882445,-496.41453018,0.0001178,2]
[7315,1714327882454,-500.0,0.0001178,2]
[7317,1714327882473,-500.0,0.0001178,2]
[7318,1714327882482,-500.0,0.0001178,2]
[7319,1714327882491,-515.13,0.0001178,2]
[7320,1714327882500,-500.0,0.0001178,2]
[7321,1714327882510,-510.39,0.0001178,2]
[7322,1714327882519,-506.65,0.0001178,2]
[7323,1714327882529,-500.0,0.0001178,2]
[7324,1714327882538,-1913.25,0.0001178,2]
[7325,1714327882549,-500.0,0.0001178,2]
[7326,1714327882558,-500.0,0.0001178,2]
[7327,1714327882567,-1006.97,0.0001178,2]
[7328,1714327882577,-524.32,0.0001178,2]
[7329,1714327882586,-206.71103297,0.0001178,2]
[7330,1714327882595,-500.0,0.0001178,2]
[7331,1714327882604,-500.0,0.0001178,2]
[7333,1714327882623,-620.38,0.0001178,2]
[7334,1714327882633,-500.0,0.0001178,2]
[7335,1714327882642,-500.0,0.0001178,2]
[7337,1714327882661,-500.0,0.0001178,2]
[7339,1714327882680,-663.22,0.0001178,2]
[7341,1714327882698,-895.1,0.0001178,2]
[7343,1714327882716,-500.0,0.0001178,2]
[7345,1714327882736,-500.0,0.0001178,2]
[7347,1714327882755,-500.0,0.0001178,2]
[7349,1714327882775,-500.0,0.0001178,2]
[7351,1714327882796,-500.0,0.0001178,2]
[7353,1714327882814,-825.87,0.0001178,2]
[7355,1714327882832,-500.0,0.0001178,2]
[7357,1714327882850,-500.0,0.0001178,2]
[7359,1714327882869,-500.0,0.0001178,2]
[7360,1714327882878,-1318.03,0.0001178,2]
[7361,1714327882887,-500.0,0.0001178,2]
[7363,1714327882905,-513.15,0.0001178,2]
[7364,1714327882914,-515.14,0.0001178,2]
[7365,1714327882924,-566.22,0.0001178,2]
[7366,1714327882933,-916.96,0.0001178,2]
[7367,1714327882942,-1561.83,0.0001178,2]
[7369,1714327882961,-500.0,0.0001178,2]
[7370,1714327882971,-500.0,0.0001178,2]
[7371,1714327882980,-1431.64,0.0001178,2]
[7372,1714327882989,-500.0,0.0001178,2]
[7373,1714327882998,-500.0,0.0001178,2]
[7375,1714327883017,-596.77,0.0001178,2]
[7376,1714327883027,-1043.91,0.0001178,2]
[7377,1714327883036,-500.0,0.0001178,2]
[7378,1714327883046,-551.25,0.0001178,2]
[7379,1714327883056,-500.0,0.0001178,2]
[7381,1714327883075,-500.0,0.0001178,2]
[7383,1714327883094,-500.0,0.0001178,2]
[7384,1714327883103,-521.83,0.0001178,2]
[7385,1714327883113,-635.46,0.0001178,2]
[7386,1714327883122,-500.0,0.0001178,2]
[7387,1714327883132,-500.0,0.0001178,2]
[7389,1714327883151,-500.0,0.0001178,2]
[7391,1714327883170,-500.0,0.0001178,2]
[7393,1714327883190,-500.0,0.0001178,2]
[7394,1714327883200,-500.0,0.0001178,2]
[7395,1714327883210,-500.0,0.0001178,2]
[7396,1714327883220,-500.0,0.0001178,2]
[7397,1714327883230,-500.0,0.0001178,2]
[7398,1714327883239,-513.46,0.0001178,2]
[7399,1714327883249,-2601.22,0.0001178,2]
[7401,1714327883268,-500.0,0.0001178,2]
[7403,1714327883287,-584.86,0.0001178,2]
[7405,1714327883308,-500.03,0.0001178,2]
[7407,1714327883327,-520.57,0.0001178,2]
[7409,1714327883351,-500.0,0.0001178,2]
[7411,1714327883370,-551.93,0.0001178,2]
[7413,1714327883389,-878.68,0.0001178,2]
[7415,1714327883408,-500.0,0.0001178,2]
[7417,1714327883431,-500.0,0.0001178,2]
[7419,1714327883450,-500.0,0.0001178,2]
[7421,1714327883469,-500.0,0.0001178,2]
[7423,1714327883489,-634.21,0.0001178,2]
[7425,1714327883510,-1071.7,0.0001178,2]
[7426,1714327883520,-574.37,0.0001178,2]
[7427,1714327883529,-500.0,0.0001178,2]
[7428,1714327883540,-500.0,0.0001178,2]
[7429,1714327883550,-500.0,0.0001178,2]
[7430,1714327883559,-500.0,0.0001178,2]
[7431,1714327883569,-825.25,0.0001178,2]
[7432,1714327883579,-500.0,0.0001178,2]
[7433,1714327883588,-500.0,0.0001178,2]
[7434,1714327883597,-572.1,0.0001178,2]
[7435,1714327883606,-500.0,0.0001178,2]
[7436,1714327883616,-649.42,0.0001178,2]
[7437,1714327883625,-500.0,0.0001178,2]
[7439,1714327883644,-500.0,0.0001178,2]
[7441,1714327883664,-1083.93,0.0001178,2]
[7443,1714327883683,-500.0,0.0001178,2]
[7445,1714327883702,-500.0,0.0001178,2]
[7447,1714327883721,-500.0,0.0001178,2]
[7449,1714327883740,-1053.42,0.0001178,2]
[7451,1714327883759,-642.64,0.0001178,2]
[7453,1714327883778,-500.0,0.0001178,2]
[7455,1714327883797,-500.0,0.0001178,2]
[7456,1714327883806,-961.49,0.0001178,2]
[7457,1714327883815,-621.25,0.0001178,2]
[7458,1714327883825,-1524.72,0.0001178,2]
[7459,1714327883834,-500.0,0.0001178,2]
[7460,1714327883843,-984.45,0.0001178,2]
[7461,1714327883852,-500.0,0.0001178,2]
[7462,1714327883861,-1732.82,0.0001178,2]
[7463,1714327883870,-643.01,0.0001178,2]
[7464,1714327883880,-835.84,0.0001178,2]
[7465,1714327883890,-511.85477371,0.0001178,2]
[7466,1714327883899,-500.0,0.0001178,2]
[7467,1714327883908,-932.25,0.0001178,2]
[7468,1714327883917,-537.6,0.0001178,2]
[7469,1714327883926,-524.24,0.0001178,2]
[7470,1714327883935,-998.84,0.0001178,2]
[7471,1714327883944,-796.96,0.0001178,2]
[7473,1714327883964,-500.0,0.0001178,2]
[7474,1714327883972,-749.47,0.0001178,2]
[7475,1714327883981,-500.0,0.0001178,2]
[7476,1714327883990,-900.78,0.0001178,2]
[7477,1714327884000,-568.72588067,0.0001178,2]
[7478,1714327884009,-332.9,0.0001178,2]
[7479,1714327884018,-500.0,0.0001178,2]
[7481,1714327884036,-500.0,0.0001178,2]
[7482,1714327884045,-1189.44,0.0001178,2]
[7483,1714327884054,-1439.92,0.0001178,2]
[7485,1714327884072,-500.0,0.0001178,2]
[7487,1714327884091,-502.52,0.0001178,2]
[7489,1714327884110,-652.39,0.0001178,2]
[7491,1714327884129,-500.0,0.0001178,2]
[7493,1714327884148,-795.46,0.0001178,2]
[7495,1714327884166,-500.0,0.0001178,2]
[7497,1714327884185,-500.0,0.0001178,2]
[7499,1714327884203,-500.0,0.0001178,2]
[7501,1714327884222,-500.0,0.0001178,2]
[7503,1714327884240,-1630.06,0.0001178,2]
[7505,1714327884259,-909.28,0.0001178,2]
[7507,1714327884279,-500.0,0.0001178,2]
[7509,1714327884298,-1245.89,0.0001178,2]
[7511,1714327884316,-500.0,0.0001178,2]
[7513,1714327884338,-500.0,0.0001178,2]
[7515,1714327884357,-869.51,0.0001178,2]
[7517,1714327884378,-849.06,0.0001178,2]
[7519,1714327884397,-500.0,0.0001178,2]
[7520,1714327884406,-506.35789469,0.0001178,2]
[7521,1714327884419,-500.0,0.0001178,2]
[7523,1714327884438,-500.0,0.0001178,2]
[7525,1714327884456,-545.78,0.0001178,2]
[7527,1714327884474,-2005.3,0.0001178,2]
[7528,1714327884483,-678.75,0.0001178,2]
[7529,1714327884493,-500.0,0.0001178,2]
[7531,1714327884511,-558.96,0.0001178,2]
[7532,1714327884519,-500.0,0.0001178,2]
[7533,1714327884528,-500.0,0.0001178,2]
[7535,1714327884549,-500.0,0.0001178,2]
[7537,1714327884568,-1355.48,0.0001178,2]
[7539,1714327884587,-500.0,0.0001178,2]
[7541,1714327884605,-500.0,0.0001178,2]
[7543,1714327884624,-500.0,0.0001178,2]
[7545,1714327884643,-545.02,0.0001178,2]
[7547,1714327884662,-500.0,0.0001178,2]
[7549,1714327884681,-554.2,0.0001178,2]
[7550,1714327884691,-500.0,0.0001178,2]
[7551,1714327884700,-926.22,0.0001178,2]
[7553,1714327884719,-500.0,0.0001178,2]
[7555,1714327884737,-578.91,0.0001178,2]
[7557,1714327884755,-1028.06,0.0001178,2]
[7559,1714327884774,-780.64,0.0001178,2]
[7561,1714327884793,-500.0,0.0001178,2]
[7563,1714327884811,-500.0,0.0001178,2]
[7565,1714327884829,-500.0,0.0001178,2]
[7567,1714327884847,-602.89,0.0001178,2]
[7568,1714327884856,-500.0,0.0001178,2]
[7569,1714327884865,-500.0,0.0001178,2]
[7570,1714327884875,-500.0,0.0001178,2]
[7571,1714327884884,-500.0,0.0001178,2]
[7572,1714327884893,-500.0,0.0001178,2]
[7573,1714327884902,-498.82018041,0.0001178,2]
[7574,1714327884911,-500.0,0.0001178,2]
[7575,1714327885085,-500.0,0.0001178,2]
[7577,1714327885106,-797.41,0.0001178,2]
[7579,1714327885125,-624.48,0.0001178,2]
[7581,1714327885144,-639.57667697,0.0001178,2]
[7582,1714327885154,-500.0,0.0001178,2]
[7583,1714327885164,-933.77,0.0001178,2]
[7585,1714327885183,-677.85,0.0001178,2]
[7587,1714327885203,-500.0,0.0001178,2]
[7589,1714327885225,-2313.19,0.0001178,2]
[7591,1714327885244,-1132.55,0.0001178,2]
[7593,1714327885264,-500.0,0.0001178,2]
[7595,1714327885282,-497.54579534,0.0001178,2]
[7597,1714327885302,-500.0,0.0001178,2]
[7599,1714327885320,-1229.87,0.0001178,2]
[7601,1714327885343,-500.0,0.0001178,2]
[7603,1714327885362,-500.0,0.0001178,2]
[7605,1714327885383,-500.0,0.0001178,2]
[7607,1714327885402,-742.48,0.0001178,2]
[7609,1714327885423,-687.59,0.0001178,2]
[7611,1714327885442,-646.2,0.0001178,2]
[7613,1714327885462,-507.64,0.0001178,2]
[7614,1714327885471,-1142.66,0.0001178,2]
[7615,1714327885480,-515.83,0.0001178,2]
[7616,1714327885490,-500.0,0.0001178,2]
[7617,1714327885499,-500.0,0.0001178,2]
[7619,1714327885517,-1406.26,0.0001178,2]
[7621,1714327885536,-597.93,0.0001178,2]
[7622,1714327885546,-500.0,0.0001178,2]
[7623,1714327885555,-1615.77,0.0001178,2]
[7624,1714327885564,-535.6,0.0001178,2]
[7625,1714327885573,-501.8006664,0.0001178,2]
[7626,1714327885582,-500.0,0.0001178,2]
[7627,1714327885594,-500.0,0.0001178,2]
[7629,1714327885613,-517.5,0.0001178,2]
[7630,1714327885622,-963.36,0.0001178,2]
[7631,1714327885633,-595.42,0.0001178,2]
[7633,1714327885654,-894.73,0.0001178,2]
[7634,1714327885664,-500.0,0.0001178,2]
[7635,1714327885674,-548.3,0.0001178,2]
[7636,1714327885683,-500.0,0.0001178,2]
[7637,1714327885693,-999.0,0.0001178,2]
[7638,1714327885702,-542.11,0.0001178,2]
[7639,1714327885712,-509.48092547,0.0001178,2]
[7641,1714327885731,-688.85,0.0001178,2]
[7642,1714327885741,-1843.67,0.0001178,2]
[7643,1714327885751,-504.13515852,0.0001178,2]
[7645,1714327885770,-2215.33,0.0001178,2]
[7646,1714327885779,-500.0,0.0001178,2]
[7647,1714327885788,-578.6644809,0.0001178,2]
[7649,1714327885807,-500.0,0.0001178,2]
[7650,1714327885816,-515.73,0.0001178,2]
[7651,1714327885825,-500.0,0.0001178,2]
[7653,1714327885845,-500.0,0.0001178,2]
[7654,1714327885855,-517.49,0.0001178,2]
[7655,1714327885866,-1247.47,0.0001178,2]
[7657,1714327885885,-227.16,0.0001178,2]
[7658,1714327885894,-996.14,0.0001178,2]
[7659,1714327885903,-500.0,0.0001178,2]
[7661,1714327885921,-500.0,0.0001178,2]
[7662,1714327885931,-500.0,0.0001178,2]
[7663,1714327885941,-504.77130104,0.0001178,2]
[7665,1714327885959,-501.7328087,0.0001178,2]
[7666,1714327885968,-500.0,0.0001178,2]
[7667,1714327885977,-700.68,0.0001178,2]
[7669,1714327885996,-500.0,0.0001178,2]
[7670,1714327886005,-1000.0,0.0001178,2]
[7671,1714327886013,-1928.76,0.0001178,2]
[7672,1714327886022,-870.0,0.0001178,2]
[7673,1714327886031,-500.0,0.0001178,2]
[7675,1714327886052,-500.0,0.0001178,2]
[7676,1714327886061,-500.0,0.0001178,2]
[7677,1714327886070,-333.67587635,0.0001178,2]
[7678,1714327886079,-500.0,0.0001178,2]
[7679,1714327886088,-500.0,0.0001178,2]
[7681,1714327886106,-1807.39,0.0001178,2]
[7682,1714327886115,-500.0,0.0001178,2]
[7683,1714327886124,-500.0,0.0001178,2]
[7684,1714327886133,-518.13,0.0001178,2]
[7685,1714327886142,-1618.32,0.0001178,2]
[7687,1714327886160,-1065.37,0.0001178,2]
[7688,1714327886169,-521.03,0.0001178,2]
[7689,1714327886178,-500.0,0.0001178,2]
[7690,1714327886187,-500.0,0.0001178,2]
[7691,1714327886196,-500.0,0.0001178,2]
[7692,1714327886205,-645.7,0.0001178,2]
[7693,1714327886214,-500.0,0.0001178,2]
[7694,1714327886223,-568.18,0.0001178,2]
[7695,1714327886232,-593.64,0.0001178,2]
[7697,1714327886258,-816.47,0.0001178,2]
[7698,1714327886274,-1346.78,0.0001178,2]
[7699,1714327886292,-501.35,0.0001178,2]
[7701,1714327886331,-513.17,0.0001178,2]
[7702,1714327886350,-500.0,0.0001178,2]
[7703,1714327886368,-571.35,0.0001178,2]
[7705,1714327886399,-1221.56,0.0001178,2]
[7706,1714327886417,-500.0,0.0001178,2]
[7707,1714327886436,-500.0,0.0001178,2]
[7708,1714327886448,-500.0,0.0001178,2]
[7709,1714327886466,-500.0,0.0001178,2]
[7711,1714327886496,-574.0,0.0001178,2]
[7712,1714327886510,-500.0,0.0001178,2]
[7713,1714327886524,-500.0,0.0001178,2]
[7715,1714327886556,-500.0,0.0001178,2]
[7717,1714327886585,-904.78,0.0001178,2]
[7719,1714327886615,-500.0,0.0001178,2]
[7720,1714327886629,-551.24,0.0001178,2]
[7721,1714327886642,-500.0,0.0001178,2]
[7722,1714327886657,-500.0,0.0001178,2]
[7723,1714327886671,-500.0,0.0001178,2]
[7725,1714327886701,-682.57,0.0001178,2]
[7726,1714327886715,-1128.45,0.0001178,2]
[7727,1714327886729,-818.9,0.0001178,2]
[7729,1714327886757,-500.0,0.0001178,2]
[7730,1714327886771,-500.0,0.0001178,2]
[7731,1714327886785,-500.0,0.0001178,2]
[7732,1714327886801,-551.75,0.0001178,2]
[7733,1714327886816,-500.0,0.0001178,2]
[7734,1714327886831,-984.25,0.0001178,2]
[7735,1714327886846,-500.0,0.0001178,2]
[7737,1714327886874,-706.35,0.0001178,2]
[7738,1714327886888,-902.19,0.0001178,2]
[7739,1714327886902,-500.0,0.0001178,2]
[7741,1714327886931,-500.0,0.0001178,2]
[7742,1714327886945,-1448.09,0.0001178,2]
[7743,1714327886959,-649.7,0.0001178,2]
[7745,1714327886987,-526.18216902,0.0001178,2]
[7746,1714327887001,-506.19059218,0.0001178,2]
[7747,1714327887016,-951.88,0.0001178,2]
[7748,1714327887030,-500.0,0.0001178,2]
[7749,1714327887045,-500.0,0.0001178,2]
[7751,1714327887073,-500.0,0.0001178,2]
[7752,1714327887090,-964.68,0.0001178,2]
[7753,1714327887104,-593.02,0.0001178,2]
[7755,1714327887133,-500.0,0.0001178,2]
[7756,1714327887148,-1160.93,0.0001178,2]
[7757,1714327887163,-1589.78,0.0001178,2]
[7759,1714327887191,-1046.22,0.0001178,2]
[7760,1714327887207,-500.0,0.0001178,2]
[7761,1714327887226,-629.50600523,0.0001178,2]
[7762,1714327887241,-500.0,0.0001178,2]
[7763,1714327887256,-500.0,0.0001178,2]
[7764,1714327887270,-500.0,0.0001178,2]
[7765,1714327887286,-772.44,0.0001178,2]
[7767,1714327887315,-500.0,0.0001178,2]
[7768,1714327887330,-541.03,0.0001178,2]
[7769,1714327887348,-987.7,0.0001178,2]
[7771,1714327887377,-1205.49,0.0001178,2]
[7772,1714327887393,-500.0,0.0001178,2]
[7773,1714327887407,-1601.9,0.0001178,2]
[7775,1714327887437,-500.0,0.0001178,2]
[7777,1714327887466,-500.0,0.0001178,2]
[7778,1714327887482,-500.0,0.0001178,2]
[7779,1714327887496,-775.0,0.0001178,2]
[7781,1714327887525,-997.97,0.0001178,2]
[7782,1714327887539,-714.87,0.0001178,2]
[7783,1714327887553,-500.0,0.0001178,2]
[7785,1714327887583,-500.0,0.0001178,2]
[7786,1714327887597,-500.0,0.0001178,2]
[7787,1714327887612,-927.36,0.0001178,2]
[7789,1714327887644,-673.34,0.0001178,2]
[7791,1714327887676,-543.64530697,0.0001178,2]
[7793,1714327887705,-500.0,0.0001178,2]
[7795,1714327887734,-473.98091875,0.0001178,2]
[7796,1714327887748,-1894.15,0.0001178,2]
[7797,1714327887762,-500.0,0.0001178,2]
[7799,1714327887791,-500.0,0.0001178,2]
[7801,1714327887821,-500.0,0.0001178,2]
[7802,1714327887835,-1661.13,0.0001178,2]
[7803,1714327887849,-1102.79,0.0001178,2]
[7805,1714327887877,-532.78,0.0001178,2]
[7806,1714327887892,-1392.54,0.0001178,2]
[7807,1714327887906,-500.0,0.0001178,2]
[7809,1714327887935,-500.0,0.0001178,2]
[7811,1714327887963,-1842.91,0.0001178,2]
[7813,1714327887992,-500.0,0.0001178,2]
[7815,1714327888020,-1229.35,0.0001178,2]
[7817,1714327888280,-500.0,0.0001178,2]
[7819,1714327888310,-715.19,0.0001178,2]
[7821,1714327888329,-700.33,0.0001178,2]
[7823,1714327888353,-500.0,0.0001178,2]
[7825,1714327888372,-500.0,0.0001178,2]
[7827,1714327888392,-558.97,0.0001178,2]
[7828,1714327888402,-694.36,0.0001178,2]
[7829,1714327888411,-500.0,0.0001178,2]
[7831,1714327888431,-641.19,0.0001178,2]
[7833,1714327888450,-500.0,0.0001178,2]
[7835,1714327888469,-565.35,0.0001178,2]
[7837,1714327888487,-500.0,0.0001178,2]
[7839,1714327888507,-503.26510192,0.0001178,2]
[7840,1714327888516,-500.0,0.0001178,2]
[7841,1714327888525,-500.0,0.0001178,2]